Cogmind - Beta 12 @@@ ROGUE MODE // 2023.12.23 @ 14:58:52 Player: Rohain Result: Destroyed by H-61 Shepherd with Heavy Assault Cannon Performance ------------- Evolutions (2) 1000 Regions Visited (4) 800 Robots Destroyed (74) 370 Value Destroyed (2408) 2408 Prototype IDs (8) 160 Alien Tech Used (0) 0 Bonus (321) 321 TOTAL SCORE: 5059 Bonus ------- High Alert Combat Kills 321 Cogmind --------- Core Integrity 0/550 Matter 300/300 Energy 100/100 System Corruption 0% Temperature Cool (0) Movement Walking (330) Ox3 Location -8/Materials Parts ------- > --- POWER (1) -------- (None) > --- PROPULSION (4) --- Aluminum Leg > --- UTILITY (4) ------ Cooling System Large Storage Unit Gravity Neutralizer > --- WEAPON (2) ------- Advanced Beam Cannon Ion Cannon > --- INVENTORY (15) --- Improved Ion Engine Cooled Ion Engine Cooled Ion Engine Cooling System Medium Laser Medium Laser Beam Rifle Advanced Beam Cannon Peak State ------------ > --- POWER ------------ Heavy Ion Engine > --- PROPULSION ------- Light Treads Aluminum Leg Carbon-fiber Leg Carbon-fiber Leg > --- UTILITY ---------- Improved Heat Sink Cooling System Large Storage Unit Hacking Suite > --- WEAPON ----------- Advanced Beam Cannon Compact Ion Cannon > --- INVENTORY -------- Improved Ion Engine Improved Ion Engine Cooled Ion Engine Cooled Ion Engine Cooling System Cooling System Gravity Neutralizer Medium Laser Medium Laser Beam Rifle Advanced Beam Cannon Advanced Beam Cannon Advanced Beam Cannon Ion Cannon [Rating: 32] Favorites ----------- Power Heavy Ion Engine Engine Heavy Ion Engine Power Core Light Nuclear Core Propulsion Aluminum Leg Treads Light Treads Leg Aluminum Leg Wheel Wheel Utility Large Storage Unit Device Cooling System Storage Large Storage Unit Hackware Hacking Suite Weapon Advanced Beam Cannon Energy Gun Medium Laser Energy Cannon Advanced Beam Cannon Ballistic Gun Assault Rifle Launcher Grenade Launcher Build | -11 -10 -9 -9 -8 ------- Run | Jun Mat Mat Sto Mat Slots Evolved 4 | . . 2 . 2 Power . | . . . . . Propulsion 2 | . . 2 . . Utility 2 | . . . . 2 Weapon . | . . . . . Parts Attached 86 | 6 7 24 24 25 Power 9 | 1 2 2 3 1 Engine 8 | 1 1 2 3 1 Core 1 | . 1 . . . Reactor . | . . . . . Propulsion 41 | 2 2 11 10 16 Treads 3 | . . . . 3 Leg 37 | 2 2 11 10 12 Wheel 1 | . . . . 1 Hover . | . . . . . Flight . | . . . . . Utility 14 | 1 . 2 6 5 Device 11 | . . 1 6 4 Storage 2 | 1 . 1 . . Processor . | . . . . . Hackware 1 | . . . . 1 Protection . | . . . . . Artifact . | . . . . . Weapon 22 | 2 3 9 5 3 Energy Gun 10 | 1 2 6 1 . Energy Cannon 7 | . . . 4 3 Ballistic Gun 1 | 1 . . . . Ballistic Cannon . | . . . . . Launcher 4 | . 1 3 . . Special Weapon . | . . . . . Impact Weapon . | . . . . . Slashing Weapon . | . . . . . Piercing Weapon . | . . . . . Special Melee Weapon . | . . . . . Unidentified Prototypes 4 | . . . 4 . Parts Lost 34 | . . 6 4 24 Power 3 | . . 1 . 2 Propulsion 23 | . . 4 3 16 Utility 3 | . . . . 3 Weapon 5 | . . 1 1 3 Highest Loss Streak 7 | . . 5 3 7 To Critical Strikes . | . . . . . Average Slot Usage (%) 93 | . 85 97 98 88 Engine 7 | . 7 2 11 8 Core 3 | . 6 8 . . Treads 1 | . . . . 4 Leg 36 | . 28 43 43 23 Device 10 | . . 9 11 18 Storage 10 | . 14 11 11 9 Energy Gun 10 | . 23 21 1 . Energy Cannon 10 | . . . 20 18 Naked Turns . | . . . . . Heaviest Build 41 | 12 13 34 38 41 Greatest Support 49 | 20 20 49 43 40 Greatest Overweight (x) 12 | 3 . . 1 12 Average Overweight (x) . | . . . . . Largest Inventory Capacity 15 | 8 8 15 15 15 Average Capacity 13 | 7 8 14 15 15 Most Carried 15 | 1 8 15 15 15 Average Carried 11 | . 6 11 14 12 Final Capacity 15 | 8 8 15 15 15 Final Carried 15 | 1 8 15 15 8 Class Distribution -------------------- 60% | Scavenger-Mutant 39% | Mutant Dominant Class ---------------- Mutant | -10/Materials Mutant | -9/Materials Scavenger-Mutant | -9/Storage Scavenger-Mutant | -8/Materials Resources | -11 -10 -9 -9 -8 ----------- Run | Jun Mat Mat Sto Mat Matter Collected 1035 | 200 125 315 190 205 Remotely . | . . . . . Salvage Created 2818 | . 175 701 1093 849 Parts 163 | . 19 44 62 38 Haulers Intercepted 5 | . . 2 2 1 Recyclers Shooed 1 | . . . . 1 Parts Field Recycled . | . . . . . Retrieved Matter . | . . . . . Parts Self-Destructed . | . . . . . Prevented . | . . . . . Kills | -11 -10 -9 -9 -8 ------- Run | Jun Mat Mat Sto Mat Combat Hostiles Destroyed 65 | . 7 19 21 18 Guns 16 | . 4 10 2 . Cannons 35 | . . . 19 16 AOE 11 | . 3 8 . . Classes Destroyed 9 | . 2 4 1 2 Builder 2 | . . 1 . 1 Hauler 5 | . . 2 2 1 Operator 1 | . . . 1 . Watcher 1 | . . 1 . . Swarmer 16 | . 3 9 . 4 Grunt 25 | . 4 3 10 8 Sentry 22 | . . 7 11 4 Specialist 1 | . . . . 1 Hunter 1 | . . . . 1 Best Kill Streak 7 | . 3 7 6 6 Combat Bots Only 6 | . 3 6 6 6 Max Kills in Single Turn 3 | . 3 3 1 2 Gunslinging . | . . . . . Exploded 3 | . 3 2 . . Melee . | . . . . . Uniques/NPCs Destroyed . | . . . . . Combat | -11 -10 -9 -9 -8 -------- Run | Jun Mat Mat Sto Mat Damage Taken 4902 | . 297 1124 1006 2475 Core 997 | . 60 214 170 553 Absorbed by Shields . | . . . . . Core Remaining (%) 60 | 100 76 . 4 . Volleys Fired 197 | . 14 58 60 65 Largest 2 | . 2 2 2 2 Hottest 158 | . 90 112 158 158 Shots Fired 389 | . 27 113 120 129 Gun 147 | . 26 106 15 . Cannon 234 | . . . 105 129 Launcher 8 | . 1 7 . . Special . | . . . . . Kinetic 5 | . 5 . . . Thermal 376 | . 21 106 120 129 Explosive 8 | . 1 7 . . Electromagnetic . | . . . . . Robot Hit Streak 22 | . 6 22 15 12 Robot Miss Streak 7 | . 2 3 4 7 Penetration Max . | . . . . . Secondary Targets 2 | . . 2 . . Max Gunslinging Chain 1 | . . 1 . . Shots Hit Robots 256 | . 17 82 71 86 Core Hits 101 | . 12 35 26 28 Critical Kills 1 | . . . 1 . Critical Parts Destroyed . | . . . . . Critical Strikes 7 | . . 5 2 . Burn 6 | . . 5 1 . Meltdown 1 | . . . 1 . Melee Attacks . | . . . . . Impact . | . . . . . Slashing . | . . . . . Piercing . | . . . . . Sneak Attacks . | . . . . . Combat Hostiles . | . . . . . Follow-up Attacks . | . . . . . Damage Inflicted 5806 | . 348 1631 1582 2245 Guns 1457 | . 214 1071 172 . Cannons 3655 | . . . 1410 2245 Explosions 694 | . 134 560 . . Melee . | . . . . . Ramming . | . . . . . Kinetic 66 | . 66 . . . Thermal 5135 | . 148 1160 1582 2245 Explosive 605 | . 134 471 . . Electromagnetic . | . . . . . Impact . | . . . . . Slashing . | . . . . . Piercing . | . . . . . Highest Corruption . | . . . . . Average Corruption . | . . . . . Corruption Purged . | . . . . . Corruption Blocked . | . . . . . Overload Shots . | . . . . . Overflow Damage 152 | . . 62 . 90 Projectiles 90 | . . . . 90 Explosions 62 | . . 62 . . Melee . | . . . . . Knockbacks . | . . . . . Impact . | . . . . . Kinetic . | . . . . . Secondary . | . . . . . Self-Inflicted Damage 194 | . 8 186 . . Shots 6 | . 1 5 . . Rammed . | . . . . . Targets Rammed . | . . . . . Kicked . | . . . . . Crushed . | . . . . . Highest Temperature 315 | . 312 199 315 60 Average Temperature 85 | . 123 87 93 10 Received Heat Transfer 1515 | . 135 315 390 675 Effects 1 | . . . 1 . Energy Bleed 1 | . . . 1 . Siege Activations . | . . . . . Robots Corrupted . | . . . . . Combat Hostiles . | . . . . . Parts Fried . | . . . . . Impact Corruptions . | . . . . . Robots Melted 4 | . . 1 1 2 Combat Hostiles 3 | . . 1 . 2 Parts Melted 28 | . 2 9 8 9 Heat Transferred 9666 | . 396 3091 2738 3441 Parts Sabotaged . | . . . . . Parts Stolen . | . . . . . Parts Stripped . | . . . . . Power Chain Reactions . | . . . . . Missiles Intercepted . | . . . . . Alert | -11 -10 -9 -9 -8 ------- Run | Jun Mat Mat Sto Mat Peak Influence 748 | . 256 570 748 552 Initial 252 | . . 23 201 252 Average 335 | . 169 220 486 407 Maximum Alert Level 3 | . 1 2 3 2 Low Security (%) 27 | 100 56 59 . . Level 1 33 | . 43 18 30 50 Level 2 36 | . . 21 60 50 Level 3 2 | . . . 8 . Level 4 . | . . . . . Level 5 . | . . . . . High Security . | . . . . . Max Security . | . . . . . Squads Dispatched 8 | . 1 . 2 5 Investigation . | . . . . . Extermination . | . . . . . Reinforcement 8 | . 1 . 2 5 Assault . | . . . . . Garrison . | . . . . . Intercept . | . . . . . Searches Triggered . | . . . . . Construction Impeded 1 | . . . . 1 Haulers Reinforced . | . . . . . Active Scanning Responses . | . . . . . Cargo Convoy Interrupts . | . . . . . Stealth | -11 -10 -9 -9 -8 --------- Run | Jun Mat Mat Sto Mat Distress Signals 10 | . 1 2 5 2 Communications Jammed . | . . . . . Distress Signals . | . . . . . Times Spotted 101 | . 12 29 30 30 Peak Tracking Total 9 | . 4 9 6 7 Tactical Retreats 5 | . 1 . 2 2 Traps | -11 -10 -9 -9 -8 ------- Run | Jun Mat Mat Sto Mat Traps Triggered 2 | . . . 2 . Indirectly . | . . . . . Trap Hack Attempts . | . . . . . Triggered . | . . . . . Disarmed . | . . . . . Reprogrammed . | . . . . . Reused . | . . . . . Traps Extracted . | . . . . . Installed . | . . . . . Triggered . | . . . . . Machines | -11 -10 -9 -9 -8 ---------- Run | Jun Mat Mat Sto Mat Machines Disabled 8 | . 1 5 1 1 Max in Single Turn 2 | . 1 2 1 1 Machines Repaired . | . . . . . Machines Sabotaged . | . . . . . Overloaded Fab Kills . | . . . . . Hacking | -11 -10 -9 -9 -8 --------- Run | Jun Mat Mat Sto Mat Machines Accessed 15 | . 2 6 5 2 Terminals 15 | . 2 6 5 2 Fabricators . | . . . . . Repair Stations . | . . . . . Recycling Units . | . . . . . Scanalyzers . | . . . . . Garrison Access . | . . . . . Total Hacks 35 | . 8 16 7 4 Successful 20 | . 5 7 5 3 Failed 14 | . 3 8 2 1 Catastrophic 1 | . . . 1 . Database Lockouts 1 | . . 1 . . Manual 30 | . 8 16 2 4 Terminals 35 | . 8 16 7 4 Fabricators . | . . . . . Repair Stations . | . . . . . Recycling Units . | . . . . . Scanalyzers . | . . . . . Garrison Access . | . . . . . Terminal Hacks 8 | . 2 3 3 . Robot Analysis 3 | . 2 1 . . Prototype ID Bank 2 | . . 2 . . Open Door 3 | . . . 3 . Fabricator Hacks . | . . . . . Repair Station Hacks . | . . . . . Recycling Unit Hacks . | . . . . . Scanalyzer . | . . . . . Garrison Access Hacks . | . . . . . Unauthorized Hacks 12 | . 3 4 2 3 Terminals 12 | . 3 4 2 3 Assimilate 1 | . . . . 1 Botnet 9 | . 2 4 2 1 Operators 2 | . 1 . . 1 Fabricators . | . . . . . Repair Stations . | . . . . . Recycling Units . | . . . . . Scanalyzers . | . . . . . Garrison Access . | . . . . . Data Cores Recovered 1 | . . . 1 . Used . | . . . . . Hacking Detections 8 | . 1 3 3 1 Full Trace Events 1 | . 1 . . . Feedback Events . | . . . . . Feedback Blocked . | . . . . . Robot Schematics Acquired . | . . . . . Robots Built . | . . . . . Authchips . | . . . . . Time . | . . . . . Total Robot Build Rating . | . . . . . Part Schematics Acquired . | . . . . . Parts Built . | . . . . . Authchips . | . . . . . Time . | . . . . . Total Part Build Rating . | . . . . . Parts Repaired . | . . . . . Time . | . . . . . Parts Recycled . | . . . . . Recycled Matter . | . . . . . Retrieved Matter . | . . . . . Retrieved Components . | . . . . . Parts Scanalyzed . | . . . . . Part Schematics Acquired . | . . . . . Parts Damaged . | . . . . . Bothacking | -11 -10 -9 -9 -8 ------------ Run | Jun Mat Mat Sto Mat Used RIF Installer . | . . . . . Robots Hacked . | . . . . . Non-combat . | . . . . . Combat . | . . . . . Robot Hacks Applied . | . . . . . Relay Couplers Released . | . . . . . Fabnet Peak Effective % . | . . . . . Robots Rewired . | . . . . . Allies Hacked . | . . . . . Hacks Repelled . | . . . . . Allies | -11 -10 -9 -9 -8 -------- Run | Jun Mat Mat Sto Mat Total Allies 1 | . . . 1 . Largest Group 1 | . . . 1 . Highest-Rated Group 100 | . . . 100 . Highest-Rated Ally 100 | . . . 100 . Total Orders . | . . . . . Ally Attacks . | . . . . . Total Damage . | . . . . . Kills . | . . . . . Allies Corrupted . | . . . . . Allies Melted . | . . . . . Intel | -11 -10 -9 -9 -8 ------- Run | Jun Mat Mat Sto Mat Robot Analysis Total 3 | . 2 1 . . Derelict Logs Recovered . | . . . . . Drone Launches . | . . . . . Drone Recoveries . | . . . . . Exploration | -11 -10 -9 -9 -8 ------------- Run | Jun Mat Mat Sto Mat Turns Passed 2902 | 70 413 816 895 708 Spaces Moved 1616 | 48 279 485 528 276 Core 16 | 15 . . . 1 Treads 41 | . . . . 41 Legs 1514 | 33 279 485 528 189 Wheels 45 | . . . . 45 Hover . | . . . . . Flight . | . . . . . Fastest Speed 50 | 50 120 120 120 120 Average Speed 125 | 127 120 120 120 151 Slowest Speed 650 | 200 120 120 190 650 Overloaded Moves . | . . . . . Propulsion Burnouts . | . . . . . Robots Hopped . | . . . . . Cave-ins Triggered . | . . . . . Exploration Rate (%) 42 | 3 52 49 79 31 Regions Visited 4 Branch Regions 1 Pre-discovered Areas . | . . . . . Known Exits Taken . | . . . . . Unknown Exits Taken 4 | 1 1 1 1 . Scrap Searched . | . . . . . Spaces Dug . | . . . . . Terrain Destroyed 101 | . 4 66 13 18 Melee . | . . . . . Projectile 31 | . . . 13 18 AOE 70 | . 4 66 . . Terrain Rammed . | . . . . . Walls Destroyed . | . . . . . Machines Disabled . | . . . . . Actions | -11 -10 -9 -9 -8 --------- Run | Jun Mat Mat Sto Mat Total 2090 | 54 332 599 673 432 Wait 129 | . 16 20 31 62 Move 1612 | 47 278 484 527 276 Hop . | . . . . . Pick Up 31 | 1 10 10 9 1 Fast Attach 33 | 6 1 2 7 17 Attach 21 | . 1 8 4 8 Detach 4 | . 1 1 2 . Swap 32 | . 5 14 13 . Drop 31 | . 6 2 20 3 Fire 197 | . 14 58 60 65 Melee . | . . . . . Ram . | . . . . . Kick . | . . . . . Crush . | . . . . . Escape Stasis . | . . . . . Rewire . | . . . . . Trap . | . . . . . Miscellaneous . | . . . . . Route ------- -11/Junkyard -10/Materials -9/Materials (discovered 4 exits: *Mat x2 / [*Min] / *Sto) -9/Storage -8/Materials (discovered 1 exit: [*Fac]) History --------- Turn | Location | Event 22 | -11/Junkyard | Discovered new exit (range 16) 71 | -11/Junkyard | Entered Materials 243 | -10/Materials | Discovered new exit (range 8) 484 | -10/Materials | Entered another Materials area 484 | -9/Materials | Evolved 2 slots: Propulsion x2 611 | -9/Materials | Build established: Scavenger-Mutant 837 | -9/Materials | Discovered new exit (range 5) 965 | -9/Materials | Build established: Mutant 1077 | -9/Materials | Discovered new exit (range 8) 1091 | -9/Materials | Central database locked down 1188 | -9/Materials | Lost 5 parts (1p3n1w) 1233 | -9/Materials | Discovered new exit (range 15) 1261 | -9/Materials | Discovered new exit (range 16) 1285 | -9/Materials | Core integrity fell below 50% 1300 | -9/Materials | Entered Storage 1379 | -9/Storage | Lost 3 parts (2n1w) 1716 | -9/Storage | Build established: Scavenger-Mutant 1898 | -9/Storage | Core integrity fell below 20% 2147 | -9/Storage | Met 01-MTF 2177 | -9/Storage | Discovered new exit (range 16) 2195 | -9/Storage | Entered Materials 2195 | -8/Materials | Accompanied by 1 ally (01-MTF) 2195 | -8/Materials | Evolved 2 slots: Utility x2 2200 | -8/Materials | 01-MTF left 2314 | -8/Materials | Lost 4 parts (4n) 2660 | -8/Materials | Core integrity fell below 50% 2667 | -8/Materials | Lost 7 parts (1p4n2u) 2786 | -8/Materials | Discovered new exit (range 13) 2814 | -8/Materials | Core integrity fell below 20% 2846 | -8/Materials | Lost 6 parts (4n1u1w) 2903 | -8/Materials | Destroyed by H-61 Shepherd with Heavy Assault Cannon Last Messages --------------- 02885_ Aluminum Leg blasted off. 02885_ Knocked back. 02887_ Slug penetrates Wall. 02887_ Knocked back. 02891_ Aluminum Leg destroyed. 02893_ Acquired Aluminum Leg. 02894_ Penetrated by Slug. 02894_ Imp. Carbon-fiber Leg destroyed. 02894_ Critical hit (Blast). 02894_ K-01 Serf destroyed. 02896_ Adv. Beam Cannon destroyed. 02896_ Knocked back. 02899_ U-05 Engineer builds a Wall. 02901_ H-61 Shepherd calls for reinforcements. 02901_ ALERT: Hostile activity reported, dispatching reinforcements to area. 02901_ Lgt. Treads destroyed. 02901_ Knocked back. 02903_ Imp. Ion Engine destroyed. 02903_ Critical hit (Blast). Map ----- +----------------------------------------------------+ | | | | | | | | | | | | | | | ????????????????????????????????????????#?######## | | ????????????????????????????????????????# | | ????????????????????????????????????????# """ """ | | ????????????????????????????????????????# """ """ | | ????????????????????????????????????????# """ """ | | ????????????????????????????????????????# | | ????????????????????????????????????????# ! ! | | ????????????????????????????????????????# =%! | | ????????????????????????????????????????######/### | | ????????????????????????????????????????????#[* + | | ??????????????????????????????????????#+##### # | | ??????????????????????###########?????#^ ^ ! # | | ??????????????????###?# #?????# + | | ??????????????????# # #?????# """ # | | ??????????????????# < # #?????# """ # | | ??????????????????# u# % ]]] #?????# "" # | | ??????????????????# %H %*]] ####### # | | ??????????? # %]] [ +%!! o # | | ??????? #% @ %## #### ## | | ???????? ?#% % ##%% #??# #? | | ????????#######+#####?###### #####! !# ## #? | | ???????????????????????????###???##!!!!##### #? | | ??????????????????????????????????######???# ## | | ????????????????????????? ??????############ # | | ???????????????????????? ?????# # | | ???????????????????????# ?????# ! | | ???????????????????????#/ ??????# %! | | ???????????????????????# ????? # =/* | | ???????????????????????# ???" # /%/ """ | | ???????????????????????# ??" # /// """ | | ?????????????########??# ? # = """ | | ?????????????# ##+####+### "" % | | ?????????????# # "T %! | | ?????????????# + "" % | | ?????????????# # ! % %! | | ?????????????# # !!% !% | | ?????????????# # ################### #### | | ?????????????# # #?????????????????# #??? | | ?????????????# # ########??????????#/#??? | | ?????????????########?# # #?????????? ??? | | ??????????????????????# # """ #?????????? ?? | | ??????????????????????# %# "R !#????????? ? | | ??????????????????????# %+ """ #????????? | +----------------------------------------------------+ Best States ------------- Heat Dissipation 67 Coolant Potential 50 Energy Generation 14 Energy Capacity 280 Matter Stores 300 Matter Capacity 300 Sight Range 16 Terrain Scan Density 10 Additional Mass Support 12 Evasion (%) 55 Recoil Reduction 2 Offensive Hacking 10 Item Schematics ----------------- None Robot Schematics ------------------ None Fabricated ------------ Nothing Alien Tech Used ----------------- None Achievements -------------- None Challenges ------------ None Game ------ Seed BackupCloakingJammer Manual? 0 Play Time 00:27:27 Cumulative 50.3 hours Start 2023.12.23 @ 14:33:57 End 2023.12.23 @ 14:58:52 Sessions 1 Manual Loads 0 Difficulty Rogue Special Mode None Game No. 84 Rogue 68 Adventurer 16 Explorer 0 Win Type - Total 1 Types 1/0/0/0/0/0/0/0/0 Lore% 31 Gallery% 51 Achievement% 45 Wizard Run 0 Options --------- ASCII 0 Keyboard 0 Movement Mouse Keybinds 0 Fullscreen 1 Font 18/SmallcapsGlow Map View 76x50 Tactical HUD 1 Map Filters NONE Filters NONE Steam 1 RUN: faf6ac88-65e4-4a69-8508-3b109de26627